[Event "Titled Tuesday Blitz July 13 2021"]
[White "Ozates, Tuna"]
[Black "Yuan, Qingyu"]
[WhiteFideId "6354521"]
[BlackFideId "8609772"]
[WhiteElo "1872"]
[BlackElo "2359"]
[Result "1-0"]
[Round "11"]
[TimeControl "180+1"]
[Date "2021.07.13"]
[WhiteClock "0:00:15"]
[BlackClock "0:00:06"]

1. e4 {[%clk 0:03:00]}  c5 {[%clk 0:03:00]} 2. Na3 {[%clk 0:02:57]}  g6 {[%clk 0:02:51]} 3. h4 {[%clk 0:02:56]}  h5 {[%clk 0:02:48]} 4. c3 {[%clk 0:02:53]}  Bg7 {[%clk 0:02:45]} 5. Nf3 {[%clk 0:02:51]}  Nc6 {[%clk 0:02:38]} 6. d4 {[%clk 0:02:51]}  d5 {[%clk 0:02:36]} 7. exd5 {[%clk 0:02:51]}  Qxd5 {[%clk 0:02:34]} 8. Nb5 {[%clk 0:02:50]}  Kf8 {[%clk 0:01:50]} 9. Nc7 {[%clk 0:02:40]}  Qe4+ {[%clk 0:01:49]} 10. Be3 {[%clk 0:02:40]}  cxd4 {[%clk 0:01:47]} 11. cxd4 {[%clk 0:02:30]}  Rb8 {[%clk 0:01:36]} 12. Bd3 {[%clk 0:02:08]}  Qg4 {[%clk 0:01:35]} 13. d5 {[%clk 0:01:55]}  Nb4 {[%clk 0:01:27]} 14. Be2 {[%clk 0:01:50]}  Qxg2 {[%clk 0:01:15]} 15. Rg1 {[%clk 0:01:48]}  Qh3 {[%clk 0:01:15]} 16. Bxa7 {[%clk 0:01:41]}  Bf5 {[%clk 0:01:05]} 17. Rc1 {[%clk 0:00:52]}  Rc8 {[%clk 0:01:02]} 18. Qb3 {[%clk 0:00:43]}  Nc2+ {[%clk 0:00:38]} 19. Rxc2 {[%clk 0:00:38]}  Bxc2 {[%clk 0:00:39]} 20. Qxc2 {[%clk 0:00:39]}  Qd7 {[%clk 0:00:31]} 21. Bb6 {[%clk 0:00:38]}  Nf6 {[%clk 0:00:31]} 22. Ne5 {[%clk 0:00:13]}  Qd6 {[%clk 0:00:31]} 23. Nc4 {[%clk 0:00:14]}  Qd7 {[%clk 0:00:21]} 24. Ne6+ {[%clk 0:00:11]}  fxe6 {[%clk 0:00:17]} 25. Qxg6 {[%clk 0:00:11]}  Rg8 {[%clk 0:00:15]} 26. Ne5 {[%clk 0:00:12]}  Qe8 {[%clk 0:00:14]} 27. dxe6 {[%clk 0:00:09]}  Qxg6 {[%clk 0:00:09]} 28. Rxg6 {[%clk 0:00:09]}  Bh8 {[%clk 0:00:03]} 29. Nd7+ {[%clk 0:00:09]}  Nxd7 {[%clk 0:00:03]} 30. exd7 {[%clk 0:00:10]}  Rc1+ {[%clk 0:00:03]} 31. Kd2 {[%clk 0:00:09]}  Rxg6 {[%clk 0:00:03]} 32. d8=Q+ {[%clk 0:00:09]}  Kf7 {[%clk 0:00:03]} 33. Kxc1 {[%clk 0:00:10]}  Rc6+ {[%clk 0:00:03]} 34. Kd2 {[%clk 0:00:10]}  Rd6+ {[%clk 0:00:03]} 35. Qxd6 {[%clk 0:00:10]}  exd6 {[%clk 0:00:04]} 36. Bxh5+ {[%clk 0:00:10]}  Ke6 {[%clk 0:00:04]} 37. Bf3 {[%clk 0:00:11]}  Bxb2 {[%clk 0:00:03]} 38. Bxb7 {[%clk 0:00:11]}  Bd4 {[%clk 0:00:03]} 39. Bc8+ {[%clk 0:00:11]}  Ke5 {[%clk 0:00:03]} 40. Bxd4+ {[%clk 0:00:12]}  Kxd4 {[%clk 0:00:04]} 41. h5 {[%clk 0:00:13]}  Ke5 {[%clk 0:00:04]} 42. h6 {[%clk 0:00:14]}  Kf6 {[%clk 0:00:05]} 43. a4 {[%clk 0:00:15]}  Kg6 {[%clk 0:00:05]} 44. a5 {[%clk 0:00:16]}  Kxh6 {[%clk 0:00:06]} 45. a6 {[%clk 0:00:17]}  Kg5 {[%clk 0:00:07]} 46. a7 {[%clk 0:00:17]}  Kf4 {[%clk 0:00:08]} 47. a8=Q {[%clk 0:00:18]}  d5 {[%clk 0:00:07]} 48. Qc6 {[%clk 0:00:19]}  d4 {[%clk 0:00:06]} 49. Bb7 {[%clk 0:00:20]}  d3 {[%clk 0:00:07]} 50. Qe4+ {[%clk 0:00:21]}  Kg5 {[%clk 0:00:07]} 51. f4+ {[%clk 0:00:20]}  Kh4 {[%clk 0:00:07]} 52. Qg2 {[%clk 0:00:18]}  Kh5 {[%clk 0:00:07]} 53. Be4 {[%clk 0:00:15]}  Kh4 {[%clk 0:00:06]} 54. Bf5 {[%clk 0:00:15]}  Kh5 {[%clk 0:00:06]} 55. Qg5# {[%clk 0:00:15]} 1-0


[Site "https://www.chess.com"]

[Event "Titled Tuesday Blitz July 13 2021"]
[White "Paravyan, David"]
[Black "Matinian, Nikita"]
[WhiteFideId "4194985"]
[BlackFideId "24129100"]
[WhiteElo "2562"]
[BlackElo "2410"]
[Result "1-0"]
[Round "11"]
[TimeControl "180+1"]
[Date "2021.07.13"]
[WhiteClock "0:02:10"]
[BlackClock "0:01:36"]

1. c4 {[%clk 0:03:00]}  e5 {[%clk 0:02:59]} 2. Nc3 {[%clk 0:03:00]}  Nc6 {[%clk 0:02:59]} 3. Nf3 {[%clk 0:02:59]}  g6 {[%clk 0:02:59]} 4. d4 {[%clk 0:02:59]}  exd4 {[%clk 0:03:00]} 5. Nxd4 {[%clk 0:03:00]}  Bg7 {[%clk 0:03:01]} 6. Be3 {[%clk 0:03:00]}  Nge7 {[%clk 0:03:00]} 7. Qd2 {[%clk 0:03:00]}  O-O {[%clk 0:03:00]} 8. O-O-O {[%clk 0:03:00]}  a6 {[%clk 0:02:54]} 9. h4 {[%clk 0:03:00]}  h5 {[%clk 0:02:54]} 10. g4 {[%clk 0:02:59]}  hxg4 {[%clk 0:02:46]} 11. h5 {[%clk 0:02:59]}  Nxd4 {[%clk 0:02:47]} 12. Bxd4 {[%clk 0:03:00]}  Bxd4 {[%clk 0:02:47]} 13. Qxd4 {[%clk 0:03:01]}  Nc6 {[%clk 0:02:43]} 14. Qxg4 {[%clk 0:02:56]}  d6 {[%clk 0:02:43]} 15. Qg3 {[%clk 0:02:55]}  g5 {[%clk 0:02:30]} 16. f4 {[%clk 0:02:52]}  f6 {[%clk 0:02:26]} 17. c5 {[%clk 0:02:48]}  Bf5 {[%clk 0:02:17]} 18. e4 {[%clk 0:02:33]}  Bh7 {[%clk 0:02:17]} 19. e5 {[%clk 0:02:30]}  Kh8 {[%clk 0:02:05]} 20. exf6 {[%clk 0:02:25]}  g4 {[%clk 0:01:54]} 21. Nd5 {[%clk 0:02:23]}  Qd7 {[%clk 0:01:51]} 22. Qc3 {[%clk 0:02:19]}  Qf7 {[%clk 0:01:43]} 23. Bc4 {[%clk 0:02:16]}  dxc5 {[%clk 0:01:40]} 24. Rhe1 {[%clk 0:02:14]}  Nd4 {[%clk 0:01:39]} 25. Re7 {[%clk 0:02:11]}  Qxd5 {[%clk 0:01:36]} 26. Bxd5 {[%clk 0:02:10]} 1-0


[Site "https://www.chess.com"]

[Event "Titled Tuesday Blitz July 13 2021"]
[White "Pert, Richard G"]
[Black "Garcia, Gabriel Gonzaga"]
[WhiteFideId "404748"]
[BlackFideId "2138956"]
[WhiteElo "2441"]
[BlackElo "2240"]
[Result "1/2-1/2"]
[Round "11"]
[TimeControl "180+1"]
[Date "2021.07.13"]
[WhiteClock "0:00:10"]
[BlackClock "0:00:08"]

1. d4 {[%clk 0:03:00]}  Nf6 {[%clk 0:02:59]} 2. Nc3 {[%clk 0:03:01]}  d5 {[%clk 0:02:59]} 3. e4 {[%clk 0:03:00]}  Nxe4 {[%clk 0:02:58]} 4. Nxe4 {[%clk 0:03:00]}  dxe4 {[%clk 0:02:59]} 5. Bc4 {[%clk 0:03:00]}  Bf5 {[%clk 0:02:57]} 6. g4 {[%clk 0:02:49]}  Bg6 {[%clk 0:02:56]} 7. Ne2 {[%clk 0:02:41]}  e5 {[%clk 0:02:56]} 8. h4 {[%clk 0:02:37]}  h5 {[%clk 0:02:49]} 9. Bg5 {[%clk 0:02:31]}  f6 {[%clk 0:02:41]} 10. Be3 {[%clk 0:02:30]}  hxg4 {[%clk 0:02:38]} 11. dxe5 {[%clk 0:02:21]}  Qxd1+ {[%clk 0:02:37]} 12. Rxd1 {[%clk 0:02:21]}  fxe5 {[%clk 0:02:23]} 13. Ng3 {[%clk 0:01:59]}  c6 {[%clk 0:02:07]} 14. h5 {[%clk 0:01:54]}  Bh7 {[%clk 0:02:05]} 15. Be6 {[%clk 0:01:41]}  Na6 {[%clk 0:01:34]} 16. Rd7 {[%clk 0:01:26]}  Nc5 {[%clk 0:01:10]} 17. Bxc5 {[%clk 0:01:18]}  Bxc5 {[%clk 0:01:11]} 18. Rxg7 {[%clk 0:01:03]}  Rd8 {[%clk 0:01:11]} 19. Rxb7 {[%clk 0:00:50]}  Rf8 {[%clk 0:00:54]} 20. Rf1 {[%clk 0:00:38]}  Rf6 {[%clk 0:00:20]} 21. Rxh7 {[%clk 0:00:37]}  Rxe6 {[%clk 0:00:20]} 22. Nxe4 {[%clk 0:00:37]}  Be7 {[%clk 0:00:18]} 23. Ke2 {[%clk 0:00:33]}  Rd4 {[%clk 0:00:18]} 24. Ke3 {[%clk 0:00:30]}  Rb4 {[%clk 0:00:15]} 25. b3 {[%clk 0:00:28]}  Bf8 {[%clk 0:00:14]} 26. c4 {[%clk 0:00:27]}  Bh6+ {[%clk 0:00:14]} 27. Ke2 {[%clk 0:00:25]}  a5 {[%clk 0:00:09]} 28. Rg1 {[%clk 0:00:22]}  a4 {[%clk 0:00:09]} 29. Rxg4 {[%clk 0:00:22]}  axb3 {[%clk 0:00:10]} 30. axb3 {[%clk 0:00:19]}  Rxb3 {[%clk 0:00:11]} 31. Rg8+ {[%clk 0:00:17]}  Bf8 {[%clk 0:00:12]} 32. Nc5 {[%clk 0:00:17]}  Rb2+ {[%clk 0:00:10]} 33. Ke3 {[%clk 0:00:17]}  Rf6 {[%clk 0:00:10]} 34. Nd7 {[%clk 0:00:15]}  Rfxf2 {[%clk 0:00:07]} 35. Rxf8+ {[%clk 0:00:13]}  Rxf8 {[%clk 0:00:06]} 36. Nxf8 {[%clk 0:00:13]}  Kxf8 {[%clk 0:00:07]} 37. h6 {[%clk 0:00:11]}  Rc2 {[%clk 0:00:03]} 38. Kd3 {[%clk 0:00:12]}  Rh2 {[%clk 0:00:02]} 39. Ke4 {[%clk 0:00:11]}  Rh4+ {[%clk 0:00:03]} 40. Kxe5 {[%clk 0:00:11]}  Rxc4 {[%clk 0:00:04]} 41. Rc7 {[%clk 0:00:10]}  Kg8 {[%clk 0:00:03]} 42. Kf6 {[%clk 0:00:09]}  Kh8 {[%clk 0:00:02]} 43. Kg5 {[%clk 0:00:08]}  Rc1 {[%clk 0:00:02]} 44. Kg6 {[%clk 0:00:07]}  Rg1+ {[%clk 0:00:02]} 45. Kf6 {[%clk 0:00:07]}  Rf1+ {[%clk 0:00:03]} 46. Kg6 {[%clk 0:00:07]}  Rg1+ {[%clk 0:00:03]} 47. Kf6 {[%clk 0:00:07]}  Rf1+ {[%clk 0:00:04]} 48. Ke6 {[%clk 0:00:07]}  Re1+ {[%clk 0:00:04]} 49. Kd6 {[%clk 0:00:07]}  Rd1+ {[%clk 0:00:04]} 50. Kxc6 {[%clk 0:00:08]}  Rc1+ {[%clk 0:00:05]} 51. Kb7 {[%clk 0:00:08]}  Rxc7+ {[%clk 0:00:06]} 52. Kxc7 {[%clk 0:00:09]}  Kh7 {[%clk 0:00:07]} 53. Kd7 {[%clk 0:00:10]}  Kxh6 {[%clk 0:00:08]} 1/2-1/2


[Site "https://www.chess.com"]

[Event "Titled Tuesday Blitz July 13 2021"]
[White "Pridorozhni, Aleksei"]
[Black "Shkapenko, Pavel"]
[WhiteFideId "4127870"]
[BlackFideId "4151933"]
[WhiteElo "2565"]
[BlackElo "2386"]
[Result "1/2-1/2"]
[Round "11"]
[TimeControl "180+1"]
[Date "2021.07.13"]
[WhiteClock "0:00:31"]
[BlackClock "0:00:14"]

1. e4 {[%clk 0:03:00]}  e5 {[%clk 0:02:59]} 2. f4 {[%clk 0:02:59]}  d5 {[%clk 0:02:59]} 3. exd5 {[%clk 0:02:59]}  exf4 {[%clk 0:02:59]} 4. Nf3 {[%clk 0:02:59]}  Nf6 {[%clk 0:02:59]} 5. Bc4 {[%clk 0:02:59]}  Nxd5 {[%clk 0:02:56]} 6. O-O {[%clk 0:03:00]}  Be7 {[%clk 0:02:51]} 7. d4 {[%clk 0:02:59]}  O-O {[%clk 0:02:50]} 8. Bxd5 {[%clk 0:02:57]}  Qxd5 {[%clk 0:02:50]} 9. Bxf4 {[%clk 0:02:58]}  Bg4 {[%clk 0:02:46]} 10. Bxc7 {[%clk 0:02:57]}  Nc6 {[%clk 0:02:44]} 11. c3 {[%clk 0:02:56]}  Bg5 {[%clk 0:02:31]} 12. Nbd2 {[%clk 0:02:53]}  Be3+ {[%clk 0:02:27]} 13. Kh1 {[%clk 0:02:53]}  Ne7 {[%clk 0:02:23]} 14. Qb3 {[%clk 0:02:50]}  Qd7 {[%clk 0:02:13]} 15. Bg3 {[%clk 0:02:49]}  Bxd2 {[%clk 0:02:10]} 16. Nxd2 {[%clk 0:02:46]}  Nf5 {[%clk 0:02:11]} 17. Bf2 {[%clk 0:02:43]}  Nd6 {[%clk 0:02:03]} 18. Rae1 {[%clk 0:02:40]}  b5 {[%clk 0:02:00]} 19. Bg3 {[%clk 0:02:35]}  Be6 {[%clk 0:01:54]} 20. Qa3 {[%clk 0:02:32]}  Nc4 {[%clk 0:01:49]} 21. Nxc4 {[%clk 0:02:31]}  bxc4 {[%clk 0:01:50]} 22. b4 {[%clk 0:02:28]}  cxb3 {[%clk 0:01:26]} 23. axb3 {[%clk 0:02:29]}  a5 {[%clk 0:01:26]} 24. Bd6 {[%clk 0:02:06]}  Rfd8 {[%clk 0:01:24]} 25. Bc5 {[%clk 0:02:06]}  a4 {[%clk 0:01:22]} 26. bxa4 {[%clk 0:02:03]}  Rxa4 {[%clk 0:01:15]} 27. Qc1 {[%clk 0:02:03]}  Ra2 {[%clk 0:01:14]} 28. Qf4 {[%clk 0:02:01]}  Bd5 {[%clk 0:01:03]} 29. Rf2 {[%clk 0:02:00]}  Re8 {[%clk 0:00:57]} 30. Ref1 {[%clk 0:01:56]}  Rxf2 {[%clk 0:00:53]} 31. Qxf2 {[%clk 0:01:55]}  Qg4 {[%clk 0:00:51]} 32. Rg1 {[%clk 0:01:36]}  Re2 {[%clk 0:00:34]} 33. Qf1 {[%clk 0:01:35]}  h5 {[%clk 0:00:32]} 34. c4 {[%clk 0:01:17]}  Bxc4 {[%clk 0:00:31]} 35. Qf3 {[%clk 0:01:17]}  Qxf3 {[%clk 0:00:30]} 36. gxf3 {[%clk 0:01:18]}  Bd5 {[%clk 0:00:30]} 37. Rf1 {[%clk 0:01:18]}  h4 {[%clk 0:00:30]} 38. Bd6 {[%clk 0:01:16]}  h3 {[%clk 0:00:30]} 39. Bg3 {[%clk 0:01:13]}  f6 {[%clk 0:00:28]} 40. Kg1 {[%clk 0:01:11]}  Kf7 {[%clk 0:00:27]} 41. Rf2 {[%clk 0:01:08]}  Re1+ {[%clk 0:00:26]} 42. Rf1 {[%clk 0:01:08]}  Rxf1+ {[%clk 0:00:27]} 43. Kxf1 {[%clk 0:01:08]}  Bxf3 {[%clk 0:00:27]} 44. Kf2 {[%clk 0:01:08]}  Bg2 {[%clk 0:00:26]} 45. Bd6 {[%clk 0:01:07]}  g5 {[%clk 0:00:25]} 46. Bc7 {[%clk 0:01:04]}  f5 {[%clk 0:00:24]} 47. Bd8 {[%clk 0:01:00]}  Kg6 {[%clk 0:00:24]} 48. Kg3 {[%clk 0:00:55]}  Bf1 {[%clk 0:00:21]} 49. d5 {[%clk 0:00:54]}  f4+ {[%clk 0:00:21]} 50. Kf2 {[%clk 0:00:54]}  Bg2 {[%clk 0:00:20]} 51. d6 {[%clk 0:00:54]}  Bc6 {[%clk 0:00:20]} 52. Be7 {[%clk 0:00:52]}  Kf5 {[%clk 0:00:20]} 53. Kg1 {[%clk 0:00:49]}  g4 {[%clk 0:00:20]} 54. d7 {[%clk 0:00:43]}  Bxd7 {[%clk 0:00:19]} 55. Bd6 {[%clk 0:00:44]}  Bc6 {[%clk 0:00:19]} 56. Bc7 {[%clk 0:00:43]}  Ke4 {[%clk 0:00:19]} 57. Bb8 {[%clk 0:00:43]}  Bb7 {[%clk 0:00:19]} 58. Bc7 {[%clk 0:00:43]}  Bd5 {[%clk 0:00:20]} 59. Kf2 {[%clk 0:00:38]}  Kf5 {[%clk 0:00:19]} 60. Kg1 {[%clk 0:00:37]}  Ke4 {[%clk 0:00:19]} 61. Kf2 {[%clk 0:00:37]}  Bb7 {[%clk 0:00:20]} 62. Bb8 {[%clk 0:00:37]}  Ba8 {[%clk 0:00:19]} 63. Bc7 {[%clk 0:00:35]}  Kf5 {[%clk 0:00:19]} 64. Kg1 {[%clk 0:00:35]}  Bd5 {[%clk 0:00:20]} 65. Bb8 {[%clk 0:00:34]}  Bb7 {[%clk 0:00:19]} 66. Bc7 {[%clk 0:00:34]}  Bc8 {[%clk 0:00:20]} 67. Bb8 {[%clk 0:00:33]}  Be6 {[%clk 0:00:20]} 68. Bc7 {[%clk 0:00:33]}  Bb3 {[%clk 0:00:20]} 69. Bb8 {[%clk 0:00:34]}  Bd1 {[%clk 0:00:20]} 70. Bc7 {[%clk 0:00:34]}  Bf3 {[%clk 0:00:21]} 71. Bb8 {[%clk 0:00:33]}  Ke4 {[%clk 0:00:21]} 72. Bc7 {[%clk 0:00:31]}  Bg2 {[%clk 0:00:21]} 73. Bb8 {[%clk 0:00:32]}  Kf3 {[%clk 0:00:21]} 74. Bc7 {[%clk 0:00:31]}  Ke4 {[%clk 0:00:14]} 75. Bd6 {[%clk 0:00:30]}  Bf3 {[%clk 0:00:14]} 76. Bc7 {[%clk 0:00:30]}  Bd1 {[%clk 0:00:15]} 77. Bd6 {[%clk 0:00:30]}  Kf3 {[%clk 0:00:15]} 78. Bc7 {[%clk 0:00:26]}  g3 {[%clk 0:00:15]} 79. Bd6 {[%clk 0:00:27]}  Bc2 {[%clk 0:00:15]} 80. Bc7 {[%clk 0:00:27]}  Be4 {[%clk 0:00:15]} 81. Bd6 {[%clk 0:00:27]}  Kg4 {[%clk 0:00:14]} 82. Bc7 {[%clk 0:00:26]}  Bd5 {[%clk 0:00:15]} 83. Bd6 {[%clk 0:00:26]}  Bc6 {[%clk 0:00:15]} 84. Bc7 {[%clk 0:00:26]}  Bb7 {[%clk 0:00:15]} 85. Bd6 {[%clk 0:00:25]}  Ba6 {[%clk 0:00:15]} 86. Bc7 {[%clk 0:00:25]}  Kf3 {[%clk 0:00:15]} 87. Bd6 {[%clk 0:00:25]}  Bc4 {[%clk 0:00:13]} 88. Bc7 {[%clk 0:00:25]}  Be6 {[%clk 0:00:13]} 89. Bd6 {[%clk 0:00:25]}  Bg4 {[%clk 0:00:13]} 90. Bc7 {[%clk 0:00:25]}  Bh5 {[%clk 0:00:13]} 91. Bd6 {[%clk 0:00:25]}  Be8 {[%clk 0:00:13]} 92. Bc7 {[%clk 0:00:25]}  Kg4 {[%clk 0:00:14]} 93. Bd6 {[%clk 0:00:25]}  Bb5 {[%clk 0:00:14]} 94. Bc7 {[%clk 0:00:25]}  Bc4 {[%clk 0:00:14]} 95. Bd6 {[%clk 0:00:25]}  g2 {[%clk 0:00:14]} 96. Bc7 {[%clk 0:00:25]}  Kf3 {[%clk 0:00:13]} 97. Bb6 {[%clk 0:00:25]}  Ke2 {[%clk 0:00:13]} 98. Bf2 {[%clk 0:00:26]}  f3 {[%clk 0:00:14]} 99. Bh4 {[%clk 0:00:26]}  Bd3 {[%clk 0:00:12]} 100. Bf2 {[%clk 0:00:27]}  Be4 {[%clk 0:00:12]} 101. Bg3 {[%clk 0:00:28]}  Bd3 {[%clk 0:00:13]} 102. Bf2 {[%clk 0:00:29]}  Be4 {[%clk 0:00:14]} 103. Bg3 {[%clk 0:00:30]}  Bd3 {[%clk 0:00:14]} 104. Bf2 {[%clk 0:00:31]} 1/2-1/2


[Site "https://www.chess.com"]

[Event "Titled Tuesday Blitz July 13 2021"]
[White "Pruijssers, Roeland"]
[Black "Janaszak, Dawid"]
[WhiteFideId "1013068"]
[BlackFideId "1119206"]
[WhiteElo "2545"]
[BlackElo "2332"]
[Result "1-0"]
[Round "11"]
[TimeControl "180+1"]
[Date "2021.07.13"]
[WhiteClock "0:00:22"]
[BlackClock "0:00:03"]

1. f4 {[%clk 0:03:00]}  e5 {[%clk 0:02:58]} 2. fxe5 {[%clk 0:02:58]}  d6 {[%clk 0:02:57]} 3. exd6 {[%clk 0:02:58]}  Bxd6 {[%clk 0:02:56]} 4. Nf3 {[%clk 0:02:58]}  g5 {[%clk 0:02:54]} 5. g3 {[%clk 0:02:58]}  g4 {[%clk 0:02:53]} 6. Nh4 {[%clk 0:02:58]}  Ne7 {[%clk 0:02:54]} 7. d4 {[%clk 0:02:58]}  Ng6 {[%clk 0:02:51]} 8. Nxg6 {[%clk 0:02:58]}  hxg6 {[%clk 0:02:51]} 9. Qd3 {[%clk 0:02:58]}  Nc6 {[%clk 0:02:38]} 10. c3 {[%clk 0:02:58]}  Qe7 {[%clk 0:02:21]} 11. e4 {[%clk 0:02:48]}  Bf5 {[%clk 0:02:15]} 12. Bg2 {[%clk 0:02:38]}  O-O-O {[%clk 0:02:15]} 13. Kf2 {[%clk 0:02:07]}  Ne5 {[%clk 0:01:56]} 14. Qe2 {[%clk 0:01:59]}  Be6 {[%clk 0:00:51]} 15. dxe5 {[%clk 0:01:54]}  Bc5+ {[%clk 0:00:41]} 16. Be3 {[%clk 0:01:51]}  Rh5 {[%clk 0:00:25]} 17. Nd2 {[%clk 0:01:44]}  Rxe5 {[%clk 0:00:25]} 18. Rhd1 {[%clk 0:01:41]}  Rh8 {[%clk 0:00:19]} 19. Kg1 {[%clk 0:01:33]}  Reh5 {[%clk 0:00:19]} 20. Nf1 {[%clk 0:01:34]}  Bd6 {[%clk 0:00:17]} 21. Bd4 {[%clk 0:01:29]}  Rxh2 {[%clk 0:00:11]} 22. Nxh2 {[%clk 0:01:16]}  Rxh2 {[%clk 0:00:08]} 23. Kxh2 {[%clk 0:00:52]}  Qh4+ {[%clk 0:00:08]} 24. Kg1 {[%clk 0:00:52]}  Bxg3 {[%clk 0:00:08]} 25. Bh1 {[%clk 0:00:35]}  b6 {[%clk 0:00:04]} 26. Rf1 {[%clk 0:00:32]}  Bd6 {[%clk 0:00:02]} 27. e5 {[%clk 0:00:30]}  Bc4 {[%clk 0:00:03]} 28. Qxc4 {[%clk 0:00:25]}  g3 {[%clk 0:00:03]} 29. Qe2 {[%clk 0:00:22]} 1-0


[Site "https://www.chess.com"]

[Event "Titled Tuesday Blitz July 13 2021"]
[White "Quparadze, Giga"]
[Black "Abdusattorov, Nodirbek"]
[WhiteFideId "13602250"]
[BlackFideId "14204118"]
[WhiteElo "2658"]
[BlackElo "2662"]
[Result "1/2-1/2"]
[Round "11"]
[TimeControl "180+1"]
[Date "2021.07.13"]
[WhiteClock "0:00:07"]
[BlackClock "0:00:07"]

1. e4 {[%clk 0:03:00]}  c5 {[%clk 0:03:00]} 2. Nf3 {[%clk 0:03:00]}  e6 {[%clk 0:03:00]} 3. d4 {[%clk 0:03:00]}  cxd4 {[%clk 0:03:01]} 4. Nxd4 {[%clk 0:03:01]}  Nf6 {[%clk 0:03:02]} 5. Nc3 {[%clk 0:03:01]}  Nc6 {[%clk 0:03:02]} 6. Be2 {[%clk 0:03:01]}  Bb4 {[%clk 0:03:02]} 7. Nxc6 {[%clk 0:02:46]}  bxc6 {[%clk 0:02:59]} 8. Qd3 {[%clk 0:02:46]}  d5 {[%clk 0:02:59]} 9. exd5 {[%clk 0:02:46]}  Nxd5 {[%clk 0:02:52]} 10. Bd2 {[%clk 0:02:42]}  O-O {[%clk 0:02:45]} 11. O-O {[%clk 0:02:36]}  a5 {[%clk 0:02:38]} 12. Qg3 {[%clk 0:02:01]}  Qf6 {[%clk 0:02:36]} 13. Bd3 {[%clk 0:01:55]}  Be7 {[%clk 0:01:24]} 14. Rab1 {[%clk 0:01:22]}  Nb4 {[%clk 0:01:20]} 15. Be4 {[%clk 0:01:20]}  Ba6 {[%clk 0:01:17]} 16. Rfe1 {[%clk 0:01:19]}  Rad8 {[%clk 0:01:16]} 17. Bf4 {[%clk 0:01:18]}  Nd5 {[%clk 0:01:01]} 18. Be5 {[%clk 0:01:14]}  Qh6 {[%clk 0:01:01]} 19. Rbd1 {[%clk 0:01:03]}  Bf6 {[%clk 0:00:55]} 20. Nxd5 {[%clk 0:00:57]}  cxd5 {[%clk 0:00:51]} 21. Bd3 {[%clk 0:00:54]}  Bxd3 {[%clk 0:00:48]} 22. Rxd3 {[%clk 0:00:54]}  Bxe5 {[%clk 0:00:45]} 23. Qxe5 {[%clk 0:00:54]}  Rb8 {[%clk 0:00:45]} 24. h3 {[%clk 0:00:32]}  Rfc8 {[%clk 0:00:45]} 25. Rg3 {[%clk 0:00:27]}  g6 {[%clk 0:00:39]} 26. Rc3 {[%clk 0:00:23]}  Qd2 {[%clk 0:00:39]} 27. Re2 {[%clk 0:00:21]}  Qc1+ {[%clk 0:00:36]} 28. Re1 {[%clk 0:00:21]}  Qh6 {[%clk 0:00:29]} 29. Ree3 {[%clk 0:00:20]}  Qf8 {[%clk 0:00:27]} 30. Rxc8 {[%clk 0:00:20]}  Rxc8 {[%clk 0:00:27]} 31. Rc3 {[%clk 0:00:20]}  Rd8 {[%clk 0:00:17]} 32. Rc7 {[%clk 0:00:19]}  Qb4 {[%clk 0:00:16]} 33. Qf6 {[%clk 0:00:17]}  Rf8 {[%clk 0:00:16]} 34. Qc3 {[%clk 0:00:16]}  Qe4 {[%clk 0:00:13]} 35. Qxa5 {[%clk 0:00:15]}  Qf4 {[%clk 0:00:13]} 36. g3 {[%clk 0:00:13]}  Qc1+ {[%clk 0:00:14]} 37. Kg2 {[%clk 0:00:13]}  Qxb2 {[%clk 0:00:15]} 38. a4 {[%clk 0:00:12]}  h5 {[%clk 0:00:14]} 39. c4 {[%clk 0:00:11]}  d4 {[%clk 0:00:14]} 40. Qe5 {[%clk 0:00:11]}  Qb8 {[%clk 0:00:11]} 41. Qd6 {[%clk 0:00:07]}  Rd8 {[%clk 0:00:10]} 42. Qe7 {[%clk 0:00:06]}  Rf8 {[%clk 0:00:09]} 43. Rd7 {[%clk 0:00:07]}  Qa8+ {[%clk 0:00:10]} 44. Kh2 {[%clk 0:00:06]}  Qf3 {[%clk 0:00:10]} 45. Kg1 {[%clk 0:00:07]}  Qd1+ {[%clk 0:00:09]} 46. Kg2 {[%clk 0:00:07]}  d3 {[%clk 0:00:04]} 47. Qd6 {[%clk 0:00:07]}  Qxa4 {[%clk 0:00:04]} 48. Qxd3 {[%clk 0:00:07]}  Rc8 {[%clk 0:00:04]} 49. Rd8+ {[%clk 0:00:06]}  Rxd8 {[%clk 0:00:04]} 50. Qxd8+ {[%clk 0:00:06]}  Kh7 {[%clk 0:00:05]} 51. Qc7 {[%clk 0:00:06]}  Kg7 {[%clk 0:00:05]} 52. c5 {[%clk 0:00:06]}  Qe4+ {[%clk 0:00:06]} 53. Kg1 {[%clk 0:00:06]}  Qe1+ {[%clk 0:00:05]} 54. Kg2 {[%clk 0:00:06]}  Qe4+ {[%clk 0:00:06]} 55. Kg1 {[%clk 0:00:06]}  Qe1+ {[%clk 0:00:06]} 56. Kg2 {[%clk 0:00:07]}  Qe4+ {[%clk 0:00:07]} 1/2-1/2


[Site "https://www.chess.com"]

[Event "Titled Tuesday Blitz July 13 2021"]
[White "Rodriguez, Santiago"]
[Black "Hebden, Mark L"]
[WhiteFideId "3000591"]
[BlackFideId "400084"]
[WhiteElo "2256"]
[BlackElo "2457"]
[Result "0-1"]
[Round "11"]
[TimeControl "180+1"]
[Date "2021.07.13"]
[WhiteClock "0:00:01"]
[BlackClock "0:01:09"]

1. d4 {[%clk 0:03:00]}  Nf6 {[%clk 0:02:59]} 2. Bg5 {[%clk 0:03:00]}  d5 {[%clk 0:02:56]} 3. Bxf6 {[%clk 0:03:00]}  exf6 {[%clk 0:02:55]} 4. e3 {[%clk 0:03:00]}  Bd6 {[%clk 0:02:54]} 5. Bd3 {[%clk 0:03:00]}  f5 {[%clk 0:02:52]} 6. Qf3 {[%clk 0:02:59]}  g6 {[%clk 0:02:51]} 7. Nd2 {[%clk 0:02:59]}  c6 {[%clk 0:02:49]} 8. Ne2 {[%clk 0:02:59]}  Nd7 {[%clk 0:02:48]} 9. h3 {[%clk 0:02:55]}  Nf6 {[%clk 0:02:48]} 10. O-O-O {[%clk 0:02:52]}  Qe7 {[%clk 0:02:41]} 11. Rdg1 {[%clk 0:02:50]}  h5 {[%clk 0:02:39]} 12. g4 {[%clk 0:02:11]}  hxg4 {[%clk 0:02:21]} 13. hxg4 {[%clk 0:02:12]}  Rxh1 {[%clk 0:02:20]} 14. Rxh1 {[%clk 0:02:07]}  Nxg4 {[%clk 0:02:19]} 15. Rh8+ {[%clk 0:02:04]}  Kd7 {[%clk 0:02:18]} 16. c4 {[%clk 0:01:47]}  dxc4 {[%clk 0:02:06]} 17. Nxc4 {[%clk 0:01:44]}  Kc7 {[%clk 0:02:04]} 18. Nf4 {[%clk 0:01:31]}  Nf6 {[%clk 0:02:01]} 19. Kb1 {[%clk 0:01:17]}  Rb8 {[%clk 0:02:00]} 20. Qh1 {[%clk 0:01:02]}  Be6 {[%clk 0:01:52]} 21. Rxb8 {[%clk 0:00:55]}  Kxb8 {[%clk 0:01:49]} 22. Nxd6 {[%clk 0:00:45]}  Qxd6 {[%clk 0:01:48]} 23. Qh8+ {[%clk 0:00:45]}  Kc7 {[%clk 0:01:46]} 24. Qg7 {[%clk 0:00:21]}  Nd5 {[%clk 0:01:44]} 25. Nxd5+ {[%clk 0:00:16]}  Bxd5 {[%clk 0:01:42]} 26. Qg8 {[%clk 0:00:13]}  a5 {[%clk 0:01:38]} 27. Qe8 {[%clk 0:00:12]}  Kb6 {[%clk 0:01:35]} 28. a3 {[%clk 0:00:12]}  Ka7 {[%clk 0:01:33]} 29. Qe5 {[%clk 0:00:11]}  Qxe5 {[%clk 0:01:31]} 30. dxe5 {[%clk 0:00:12]}  c5 {[%clk 0:01:31]} 31. Kc2 {[%clk 0:00:12]}  Kb6 {[%clk 0:01:29]} 32. Kc3 {[%clk 0:00:12]}  a4 {[%clk 0:01:29]} 33. f4 {[%clk 0:00:10]}  Ka5 {[%clk 0:01:28]} 34. Bc4 {[%clk 0:00:08]}  Be6 {[%clk 0:01:24]} 35. Bd3 {[%clk 0:00:02]}  b5 {[%clk 0:01:23]} 36. Bc2 {[%clk 0:00:02]}  b4+ {[%clk 0:01:22]} 37. Kd3 {[%clk 0:00:02]}  Kb5 {[%clk 0:01:14]} 38. Bd1 {[%clk 0:00:02]}  c4+ {[%clk 0:01:10]} 39. Kd4 {[%clk 0:00:01]}  c3 {[%clk 0:01:09]} 0-1


[Site "https://www.chess.com"]